bitfinex-derivatives/quotes_BNBF0:USTF0_20250810
["timestamp","ask_amount","ask_price","bid_price","bid_amount"]
[1754860303134,0.76566735,803.4,801.78,1.6747942]
[1754860303333,0.76566735,803.39,801.78,1.6747942]
[1754860303537,0.76566735,803.38,801.78,1.6747942]
[1754860303735,0.76566735,803.37,801.78,1.6747942]
[1754860303939,0.76566735,803.36,801.78,1.6747942]
[1754860304138,0.76566735,803.35,801.78,1.6747942]
[1754860304337,0.76566735,803.34,801.78,1.6747942]
[1754860304542,0.76566735,803.33,801.77,1.6747942]
[1754860304842,0.76566735,803.32,801.77,1.6747942]
[1754860305043,0.76566735,803.31,801.77,1.6747942]
[1754860305245,0.76566735,803.3,801.77,1.6747942]
[1754860305444,0.76566735,803.29,801.77,1.6747942]
[1754860305646,0.76566735,803.28,801.77,1.6747942]
[1754860305943,0.76566735,803.27,801.77,1.6747942]
[1754860306142,0.76566735,803.26,801.77,1.6747942]
[1754860306446,0.21700969,802.9,801.78,1.6747942]
[1754860306646,0.21700969,802.9,801.79,1.6747942]
[1754860306943,0.21700969,802.9,801.77,1.6747942]
[1754860307445,0.21700969,802.9,801.78,1.6747942]
[1754860308241,0.21700969,802.9,801.79,1.6747942]
[1754860308445,0.21700969,802.9,801.83,1.6747942]
[1754860309256,0.21700969,802.9,801.84,1.6747942]
[1754860309445,0.21700969,802.9,801.85,1.6747942]
[1754860310241,0.21700969,802.9,801.86,1.6747942]
[1754860310441,0.21700969,802.9,801.87,1.6747942]
[1754860311242,0.21700969,802.9,801.88,1.6747942]
[1754860311544,0.21700969,802.9,801.89,1.6747942]
[1754860312241,0.21700969,802.9,801.9,1.6747942]
[1754860312544,0.21700969,802.9,801.92,1.6747942]
[1754860312948,0.21700969,802.9,801.83,1.6747942]
[1754860313247,0.21700969,802.9,801.84,1.6747942]
[1754860313448,0.21700969,802.9,801.86,1.6747942]
[1754860314046,0.21700969,802.9,801.78,1.6747942]
[1754860314546,0.21700969,802.9,801.68,1.6747942]
[1754860315248,0.21700969,802.9,801.69,1.6747942]
[1754860315445,0.21700969,802.9,800.84,2.8023031]
[1754860315446,0.21700969,802.9,801.71,1.6747942]
[1754860316148,0.21700969,802.9,801.72,1.6747942]
[1754860316345,0.21700969,802.9,801.74,1.6747942]
[1754860316749,0.21700969,802.9,801.76,1.6747942]
[1754860317546,0.21700969,802.9,801.79,1.6747942]
[1754860317846,0.21700969,802.9,801.8,1.6747942]
[1754860318250,0.21700969,802.9,801.82,1.6747942]
[1754860318550,0.21700969,802.9,801.84,1.6747942]
[1754860319450,0.21700969,802.9,801.88,1.6747942]
[1754860321348,0.21700969,802.9,801.91,1.6747942]
[1754860321545,0.21700969,802.9,801.93,1.6747942]
[1754860321850,0.21700969,802.9,802.0,1.6747942]
[1754860322247,0.21700969,802.9,802.03,1.6747942]
[1754860322547,0.21700969,802.9,801.97,1.6747942]
[1754860322749,0.21700969,802.9,801.83,1.6747942]
[1754860322951,0.21700969,802.9,801.94,1.6747942]
[1754860323247,0.21700969,802.9,801.95,1.6747942]
[1754860323548,0.21700969,802.9,801.96,1.6747942]
[1754860323751,0.21700969,802.9,801.95,1.6747942]
[1754860323952,0.21700969,802.9,801.86,1.6747942]
[1754860324352,0.21700969,802.9,801.87,1.6747942]
[1754860325253,0.21700969,802.9,801.88,1.6747942]
[1754860326248,0.77106202,802.89,801.88,1.6747942]
[1754860326449,0.77106202,802.88,801.9,1.6747942]
[1754860326649,0.77106202,802.87,801.9,1.6747942]
[1754860326854,0.77106202,802.86,801.9,1.6747942]
[1754860327053,0.21700969,802.9,801.9,1.6747942]
[1754860327254,0.77106296,802.89,801.9,1.6747942]
[1754860327454,0.77106296,802.88,801.9,1.6747942]
[1754860327654,0.77106296,802.87,801.9,1.6747942]
[1754860327950,0.77106296,802.86,801.88,1.6747942]
[1754860328249,0.21700969,802.9,801.88,1.6747942]
[1754860328450,0.77102646,802.89,801.88,1.6747942]
[1754860328753,0.77102646,802.88,801.88,1.6747942]
[1754860328955,0.77102646,802.87,801.88,1.6747942]
[1754860329254,0.77102646,802.86,801.88,1.6747942]
[1754860329449,0.21700969,802.9,801.88,1.6747942]
[1754860329750,0.77096702,802.89,801.88,1.6747942]
[1754860329954,0.77096702,802.88,801.88,1.6747942]
[1754860330249,0.21700969,802.9,801.88,1.6747942]
[1754860330250,0.77096702,802.87,801.88,1.6747942]
[1754860330453,0.77096702,802.86,801.88,1.6747942]
[1754860330654,0.21700969,802.9,801.88,1.6747942]
[1754860330852,0.77088372,802.89,801.88,1.6747942]
[1754860331056,0.77088372,802.88,801.88,1.6747942]
[1754860331351,0.77088372,802.87,801.87,1.6747942]
[1754860331554,0.77088372,802.86,801.87,1.6747942]
[1754860331752,0.21700969,802.9,801.87,1.6747942]
[1754860331953,0.77074523,802.89,801.87,1.6747942]
[1754860332152,0.77074523,802.88,801.87,1.6747942]
[1754860332353,0.77074523,802.87,801.87,1.6747942]
[1754860332556,0.21700969,802.9,801.89,1.6747942]
[1754860332757,0.77068193,802.89,801.88,1.6747942]
[1754860332959,0.77068193,802.88,801.86,1.6747942]
[1754860333159,0.77068193,802.87,801.86,1.6747942]
[1754860333460,0.77068193,802.86,801.86,1.6747942]
[1754860333658,0.77068193,802.85,801.86,1.6747942]
[1754860333861,0.21700969,802.9,801.88,1.6747942]
[1754860334061,0.21700969,802.9,801.93,1.6747942]
[1754860334262,0.21700969,802.9,802.03,1.6747942]
[1754860335865,0.21700969,802.9,802.05,1.6747942]
[1754860336363,0.21700969,802.9,802.11,1.6747942]
[1754860337164,0.21700969,802.9,802.14,1.6747942]
[1754860337765,0.21700969,802.9,802.2,1.6747942]
[1754860339268,0.21700969,802.9,802.19,1.6747942]
[1754860339567,0.21700969,802.9,802.16,1.6747942]
[1754860339764,0.21700969,802.9,802.03,1.6747942]
[1754860340269,0.21700969,802.9,801.96,1.6747942]
[1754860341368,0.21700969,802.9,801.88,1.6747942]
[1754860342369,0.21700969,802.9,801.89,1.6747942]
[1754860343066,0.21700969,802.9,801.86,1.6747942]
[1754860343667,0.21700969,802.9,801.81,1.6747942]
[1754860343873,0.77046693,802.89,801.78,1.6747942]
[1754860344074,0.77046693,802.88,801.75,1.6747942]
[1754860344273,0.77046693,802.87,801.75,1.6747942]
[1754860344472,0.77046693,802.86,801.75,1.6747942]
[1754860344672,0.77046693,802.85,801.75,1.6747942]
[1754860344870,0.21700969,802.9,801.75,1.6747942]
[1754860345073,0.77048825,802.89,801.75,1.6747942]
[1754860345370,0.77048825,802.88,801.69,1.6747942]
[1754860345574,0.77048825,802.87,801.7,1.6747942]
[1754860345875,0.77048825,802.86,801.7,1.6747942]
[1754860346075,0.77048825,802.85,801.7,1.6747942]
[1754860346374,0.77048825,802.84,801.73,1.6747942]
[1754860346570,0.77048825,802.83,801.73,1.6747942]
[1754860346771,0.77048825,802.82,801.77,1.6747942]
[1754860346976,0.21700969,802.9,801.77,1.6747942]
[1754860347177,0.77066358,802.89,801.77,1.6747942]
[1754860347476,0.77066358,802.88,801.77,1.6747942]
[1754860347671,0.77066358,802.87,801.77,1.6747942]
[1754860347874,0.77066358,802.86,801.77,1.6747942]
[1754860348073,0.77066358,802.85,801.77,1.6747942]
[1754860348274,0.77066358,802.84,801.76,1.6747942]
[1754860348473,0.77066358,802.83,801.77,1.6747942]
[1754860348678,0.21700969,802.9,801.77,1.6747942]
[1754860348878,0.77064975,802.89,801.77,1.6747942]
[1754860349078,0.77064975,802.88,801.77,1.6747942]
[1754860349278,0.77064975,802.87,801.76,1.6747942]
[1754860349479,0.77064975,802.86,801.76,1.6747942]
[1754860349679,0.77064975,802.85,801.76,1.6747942]
[1754860349878,0.77064975,802.84,801.76,1.6747942]
[1754860350080,0.77064975,802.83,801.76,1.6747942]
[1754860350376,0.21700969,802.9,801.81,1.6747942]
[1754860350580,0.77066744,802.89,801.81,1.6747942]
[1754860350776,0.77066744,802.88,801.89,1.6747942]
[1754860350980,0.77066744,802.87,801.89,1.6747942]
[1754860351279,0.77066744,802.86,801.89,1.6747942]
[1754860351480,0.77066744,802.85,801.88,1.6747942]
[1754860351780,0.77066744,802.84,801.91,1.6747942]
[1754860351981,0.77066744,802.83,801.91,1.6747942]
[1754860352181,0.21700969,802.9,801.91,1.6747942]
[1754860352481,0.7706595,802.89,801.9,1.6747942]
[1754860352680,0.7706595,802.88,801.98,1.6747942]
[1754860352879,0.7706595,802.87,801.98,1.6747942]
[1754860353178,0.7706595,802.86,801.98,1.6747942]
[1754860353377,0.7706595,802.85,801.98,1.6747942]
[1754860353581,0.21700969,802.9,802.0,1.6747942]
[1754860353779,0.21700969,802.9,801.9,1.6747942]
[1754860353984,0.21700969,802.9,801.91,1.6747942]
[1754860354485,0.21700969,802.9,801.89,1.6747942]
[1754860354679,0.21700969,802.9,801.86,1.6747942]
[1754860357883,0.21700969,802.9,801.85,1.6747942]
[1754860358185,0.21700969,802.9,801.86,1.6747942]
[1754860359983,0.7712094,802.89,801.88,1.6747942]
[1754860360181,0.7712094,802.88,801.85,1.6747942]
[1754860360380,0.21700969,802.9,801.85,1.6747942]
[1754860360582,0.77121114,802.89,801.85,1.6747942]
[1754860360785,0.77121114,802.88,801.85,1.6747942]
[1754860360982,0.21700969,802.9,801.85,1.6747942]
[1754860361283,0.77121114,802.89,801.85,1.6747942]
[1754860361482,0.77121114,802.88,801.85,1.6747942]
[1754860361686,0.21700969,802.9,801.85,1.6747942]
[1754860361886,0.77121345,802.89,801.86,1.6747942]
[1754860362086,0.77121345,802.88,801.86,1.6747942]
[1754860362285,0.21700969,802.9,801.86,1.6747942]
[1754860362485,0.77121642,802.89,801.86,1.6747942]
[1754860362685,0.21700969,802.9,801.86,1.6747942]
[1754860362990,0.77124334,802.89,801.88,1.6747942]
[1754860363286,0.77124334,802.88,801.88,1.6747942]
[1754860363588,0.77124334,802.87,801.88,1.6747942]
[1754860363784,0.77124334,802.86,801.88,1.6747942]
[1754860363988,0.77124334,802.85,801.86,1.6747942]
[1754860364185,0.77124334,802.84,801.87,1.6747942]
[1754860364383,0.21700969,802.9,801.91,1.6747942]
[1754860364583,0.77138002,802.89,801.96,1.6747942]
[1754860364787,0.21700969,802.9,801.96,1.6747942]
[1754860364986,0.77138021,802.89,801.96,1.6747942]
[1754860365285,0.21700969,802.9,801.96,1.6747942]
[1754860365490,0.77139957,802.89,801.96,1.6747942]
[1754860365689,0.21700969,802.9,801.96,1.6747942]
[1754860365886,0.77139341,802.89,801.96,1.6747942]
[1754860366090,0.21700969,802.9,801.97,1.6747942]
[1754860366291,0.77141338,802.89,801.97,1.6747942]
[1754860366588,0.21700969,802.9,801.97,1.6747942]
[1754860366886,0.77140669,802.89,801.97,1.6747942]
[1754860367186,0.21700969,802.9,801.97,1.6747942]
[1754860367385,0.77147945,802.89,801.97,1.6747942]
[1754860367588,0.21700969,802.9,801.97,1.6747942]
[1754860367788,0.77151626,802.89,801.97,1.6747942]
[1754860367988,0.21700969,802.9,801.97,1.6747942]
[1754860368188,0.77151626,802.89,801.97,1.6747942]
[1754860368393,0.21700969,802.9,801.97,1.6747942]
[1754860368594,0.77153019,802.89,801.97,1.6747942]
[1754860368795,0.21700969,802.9,801.97,1.6747942]
[1754860369097,0.77152871,802.89,801.97,1.6747942]
[1754860369296,0.21700969,802.9,801.97,1.6747942]
[1754860369494,0.77154227,802.89,801.99,1.6747942]
[1754860369696,0.21700969,802.9,801.99,1.6747942]
[1754860369893,0.77154212,802.89,801.99,1.6747942]
[1754860370197,0.21700969,802.9,801.99,1.6747942]
[1754860370396,0.77156462,802.89,801.99,1.6747942]
[1754860370596,0.21700969,802.9,801.99,1.6747942]
[1754860370893,0.77168053,802.89,801.99,1.6747942]
[1754860371097,0.21700969,802.9,801.99,1.6747942]
[1754860371397,0.77174047,802.89,801.99,1.6747942]
[1754860371592,0.21700969,802.9,801.99,1.6747942]
[1754860371792,0.77173114,802.89,802.05,1.6747942]
[1754860371997,0.21700969,802.9,802.05,1.6747942]
[1754860372196,0.77173114,802.89,802.05,1.6747942]
[1754860372497,0.21700969,802.9,802.05,1.6747942]
[1754860372694,0.77174508,802.89,802.05,1.6747942]
[1754860372894,0.21700969,802.9,802.05,1.6747942]
[1754860373092,0.21700969,802.9,802.14,1.6747942]
[1754860373295,0.21700969,802.9,801.37,2.8023031]
[1754860373296,0.21700969,802.9,802.15,1.6747942]
[1754860373496,0.21700969,802.9,802.14,1.6747942]
[1754860373895,0.21700969,802.9,802.18,1.6747942]
[1754860374295,0.21700969,802.9,802.19,1.6747942]
[1754860374495,0.21700969,802.9,802.29,1.6747942]
[1754860375200,0.21700969,802.9,802.3,1.6747942]
[1754860375997,0.21700969,802.9,802.32,1.6747942]
[1754860376896,0.21700969,802.9,802.33,1.6747942]
[1754860377898,0.21700969,802.9,802.23,1.6747942]
[1754860379102,0.21700969,802.9,802.19,1.6747942]
[1754860379698,0.21700969,802.9,802.1,1.6747942]
[1754860380398,0.21700969,802.9,802.11,1.6747942]
[1754860380699,0.21700969,802.9,802.03,1.6747942]
[1754860380902,0.21700969,802.9,802.0,1.6747942]
[1754860381599,0.21700969,802.9,801.99,1.6747942]
[1754860381804,0.21700969,802.9,801.1,2.8023031]
[1754860381805,0.77152881,802.89,801.94,1.6747942]
[1754860382005,0.21700969,802.9,801.94,1.6747942]
[1754860382205,0.77152881,802.89,802.04,1.6747942]
[1754860382403,0.77152881,802.88,802.0,1.6747942]
[1754860382600,0.77152881,802.87,802.0,1.6747942]
[1754860382799,0.77152881,802.86,802.0,1.6747942]
[1754860383101,0.77152881,802.85,801.99,1.6747942]
[1754860383400,0.77152881,802.84,801.99,1.6747942]
[1754860383600,0.77152881,802.83,801.99,1.6747942]
[1754860383800,0.77152881,802.82,801.99,1.6747942]
[1754860384102,0.77152881,802.81,801.98,1.6747942]
[1754860384305,0.77152881,802.8,801.91,1.6747942]
[1754860384605,0.77152881,802.79,801.88,1.6747942]
[1754860384900,0.77152881,802.78,801.81,1.6747942]
[1754860385102,0.77152881,802.77,801.8,1.6747942]
[1754860385306,0.77152881,802.76,801.71,1.6747942]
[1754860385502,0.77152881,802.75,801.7,1.6747942]
[1754860385702,0.77152881,802.74,801.7,1.6747942]
[1754860385906,0.77152881,802.73,801.76,1.6747942]
[1754860386203,0.77152881,802.72,801.76,1.6747942]
[1754860386403,0.77152881,802.71,801.77,1.6747942]
[1754860386605,0.77152881,802.7,801.77,1.6747942]
[1754860386806,0.77152881,802.69,801.75,1.6747942]
[1754860387005,0.77152881,802.68,801.75,1.6747942]
[1754860387307,0.77152881,802.67,801.75,1.6747942]
[1754860387507,0.77152881,802.66,801.75,1.6747942]
[1754860387702,0.77152881,802.65,801.75,1.6747942]
[1754860388003,0.21700969,802.9,801.75,1.6747942]
[1754860388206,0.7708131,802.89,801.75,1.6747942]
[1754860388408,0.7708131,802.88,801.74,1.6747942]
[1754860388603,0.7708131,802.87,801.74,1.6747942]
[1754860388805,0.7708131,802.86,801.74,1.6747942]
[1754860389007,0.7708131,802.85,801.74,1.6747942]
[1754860389208,0.7708131,802.84,801.72,1.6747942]
[1754860389408,0.7708131,802.83,801.71,1.6747942]
[1754860389706,0.7708131,802.82,801.71,1.6747942]
[1754860389907,0.7708131,802.81,801.71,1.6747942]
[1754860390108,0.7708131,802.8,801.71,1.6747942]
[1754860390407,0.7708131,802.79,801.71,1.6747942]
[1754860390607,0.7708131,802.78,801.71,1.6747942]
[1754860390806,0.7708131,802.77,801.71,1.6747942]
[1754860391006,0.7708131,802.76,801.71,1.6747942]
[1754860391203,0.7708131,802.75,801.71,1.6747942]
[1754860391408,0.7708131,802.74,801.7,1.6747942]
[1754860391608,0.7708131,802.73,801.7,1.6747942]
[1754860391805,0.7708131,802.72,801.7,1.6747942]
[1754860392009,0.7708131,802.71,801.7,1.6747942]
[1754860392209,0.7708131,802.7,801.7,1.6747942]
[1754860392409,0.7708131,802.69,801.7,1.6747942]
[1754860392610,0.7708131,802.68,801.69,1.6747942]
[1754860392909,0.21700969,802.9,801.69,1.6747942]
[1754860393106,0.7702225,802.89,801.7,1.6747942]
[1754860393305,0.7702225,802.89,800.87,2.8023031]
[1754860393306,0.7702225,802.88,801.69,1.6747942]
[1754860393505,0.7702225,802.87,801.69,1.6747942]
[1754860393804,0.7702225,802.86,801.69,1.6747942]
[1754860394008,0.7702225,802.85,801.66,1.6747942]
[1754860394204,0.7702225,802.84,801.66,1.6747942]
[1754860394408,0.7702225,802.83,801.65,1.6747942]
[1754860394608,0.7702225,802.83,800.53,0.21707332]
[1754860394609,0.7702225,802.82,801.67,1.6747942]
[1754860394806,0.7702225,802.81,801.68,1.6747942]
[1754860395007,0.7702225,802.8,801.68,1.6747942]
[1754860395206,0.7702225,802.79,801.74,1.6747942]
[1754860395409,0.7702225,802.78,801.73,1.6747942]
[1754860395705,0.7702225,802.77,801.73,1.6747942]
[1754860395909,0.7702225,802.76,801.73,1.6747942]
[1754860396109,0.7702225,802.75,801.76,1.6747942]
[1754860396310,0.7702225,802.74,801.76,1.6747942]
[1754860396508,0.7702225,802.73,801.75,1.6747942]
[1754860396711,0.21700969,802.9,801.76,1.6747942]
[1754860397009,0.76988766,802.89,801.78,1.6747942]
[1754860397206,0.76988766,802.88,801.83,1.6747942]
[1754860397406,0.76988766,802.87,801.86,1.6747942]
[1754860397605,0.76988766,802.86,801.86,1.6747942]
[1754860397806,0.76988766,802.85,801.86,1.6747942]
[1754860398106,0.76988766,802.84,801.86,1.6747942]
[1754860398410,0.21700969,802.9,801.95,1.6747942]
[1754860398606,0.76991351,802.89,801.99,1.6747942]
[1754860398910,0.76991351,802.88,801.99,1.6747942]
[1754860399109,0.21700969,802.9,801.99,1.6747942]
[1754860399311,0.76991349,802.89,801.99,1.6747942]
[1754860399611,0.76991349,802.88,801.98,1.6747942]
[1754860399808,0.76991349,802.87,801.98,1.6747942]
[1754860400006,0.21700969,802.9,801.98,1.6747942]
[1754860400208,0.76991764,802.89,801.98,1.6747942]
[1754860400407,0.76991764,802.88,801.98,1.6747942]
[1754860400607,0.21700969,802.9,801.98,1.6747942]
[1754860400608,0.76991764,802.87,801.98,1.6747942]
[1754860400808,0.76991238,802.86,801.99,1.6747942]
[1754860401012,0.21700969,802.9,801.36,2.8023031]
[1754860401013,0.76991238,802.85,802.0,1.6747942]
[1754860401213,0.76991238,802.84,802.0,1.6747942]
[1754860401410,0.76991238,802.83,801.99,1.6747942]
[1754860401611,0.76991238,802.82,801.99,1.6747942]
[1754860401914,0.76991238,802.81,801.98,1.6747942]
[1754860402112,0.76991238,802.8,801.98,1.6747942]
[1754860402310,0.21700969,802.9,801.98,1.6747942]
[1754860402510,0.76975483,802.89,801.91,1.6747942]
[1754860402710,0.76975483,802.88,801.91,1.6747942]
[1754860402914,0.21700969,802.9,801.17,3.9232243]
[1754860402915,0.83654234,802.85,801.71,1.6747942]
[1754860403114,0.76975483,802.84,801.71,1.6747942]
[1754860403410,0.76975483,802.83,801.71,1.6747942]
[1754860403614,0.76975483,802.82,801.71,1.6747942]
[1754860403815,0.76975483,802.81,801.71,1.6747942]
[1754860404015,0.76975483,802.8,801.71,1.6747942]
[1754860404216,0.76975483,802.79,801.71,1.6747942]
[1754860404516,0.76975483,802.78,801.7,1.6747942]
[1754860404815,0.76975483,802.77,801.7,1.6747942]
[1754860405017,0.76975483,802.76,801.7,1.6747942]
[1754860405216,0.76975483,802.75,801.7,1.6747942]
[1754860405415,0.76975483,802.74,801.7,1.6747942]
[1754860405612,0.76975483,802.73,801.7,1.6747942]
[1754860405816,0.76975483,802.72,801.7,1.6747942]
[1754860406014,0.76975483,802.71,801.7,1.6747942]
[1754860406213,0.76975483,802.7,801.7,1.6747942]
[1754860406514,0.76975483,802.69,801.69,1.6747942]
[1754860406717,0.76975483,802.68,801.69,1.6747942]
[1754860406918,0.76975483,802.67,801.69,1.6747942]
[1754860407119,0.76975483,802.66,801.69,1.6747942]
[1754860407418,0.76975483,802.65,801.68,1.6747942]
[1754860407616,0.76975483,802.64,801.68,1.6747942]
[1754860407816,0.76975483,802.63,801.68,1.6747942]
[1754860408019,0.76975483,802.62,801.68,1.6747942]
[1754860408217,0.76975483,802.61,801.68,1.6747942]
[1754860408420,0.76975483,802.6,801.68,1.6747942]
[1754860408618,0.76975483,802.59,801.68,1.6747942]
[1754860408821,0.76975483,802.58,801.68,1.6747942]
[1754860409021,0.83654234,802.85,801.68,1.6747942]
[1754860409218,0.76878609,802.84,801.67,1.6747942]
[1754860409422,0.76878609,802.83,801.67,1.6747942]
[1754860409717,0.76878609,802.82,801.66,1.6747942]
[1754860409922,0.76878609,802.81,801.66,1.6747942]
[1754860410121,0.76878609,802.8,801.66,1.6747942]
[1754860410416,0.76878609,802.79,801.66,1.6747942]
[1754860410617,0.76878609,802.78,801.66,1.6747942]
[1754860410917,0.76878609,802.77,801.66,1.6747942]
[1754860411124,0.76878609,802.76,801.66,1.6747942]
[1754860411323,0.76878609,802.75,801.66,1.6747942]
[1754860411620,0.76878609,802.74,801.66,1.6747942]
[1754860411825,0.76878609,802.73,801.66,1.6747942]
[1754860412025,0.76878609,802.72,801.66,1.6747942]
[1754860412224,0.76878609,802.71,801.66,1.6747942]
[1754860412424,0.76878609,802.7,801.64,1.6747942]
[1754860412622,0.76878609,802.69,801.63,1.6747942]
[1754860412922,0.83654234,802.81,801.71,1.6747942]
[1754860413125,0.76854501,802.8,801.83,1.6747942]
[1754860413322,0.76854501,802.79,801.83,1.6747942]
[1754860413527,0.76854501,802.78,801.83,1.6747942]
[1754860413728,0.76854501,802.77,801.83,1.6747942]
[1754860413927,0.76854501,802.76,801.58,1.6747942]
[1754860414128,0.76854501,802.75,801.58,1.6747942]
[1754860414325,0.76854501,802.74,801.58,1.6747942]
[1754860414527,0.76854501,802.73,801.58,1.6747942]
[1754860414726,0.76854501,802.72,801.51,1.6747942]
[1754860414930,0.76854501,802.71,801.51,1.6747942]
[1754860415129,0.76854501,802.7,801.51,1.6747942]
[1754860415429,0.76854501,802.69,801.45,1.6747942]
[1754860415728,0.76854501,802.68,801.45,1.6747942]
[1754860415924,0.76854501,802.67,801.45,1.6747942]
[1754860416129,0.21700969,802.9,801.45,1.6747942]
[1754860416326,0.76884655,802.89,801.45,1.6747942]
[1754860416529,0.76884655,802.88,801.45,1.6747942]
[1754860416727,0.76884655,802.87,801.45,1.6747942]
[1754860416930,0.76884655,802.86,801.45,1.6747942]
[1754860417127,0.76884655,802.85,801.45,1.6747942]
[1754860417330,0.76884655,802.84,801.45,1.6747942]
[1754860417531,0.76884655,802.83,801.45,1.6747942]
[1754860417726,0.76884655,802.82,801.45,1.6747942]
[1754860417927,0.76884655,802.81,801.45,1.6747942]
[1754860418228,0.76884655,802.8,801.45,1.6747942]
[1754860418426,0.76884655,802.79,801.44,1.6747942]
[1754860418625,0.76884655,802.78,801.44,1.6747942]
[1754860418829,0.76884655,802.77,801.44,1.6747942]
[1754860419030,0.76884655,802.76,801.37,1.6747942]
[1754860419227,0.76884655,802.75,801.31,1.6747942]
[1754860419427,0.76884655,802.74,801.47,1.6747942]
[1754860419625,0.76884655,802.73,801.47,1.6747942]
[1754860419826,0.76884655,802.72,801.47,1.6747942]
[1754860420029,0.76884655,802.71,801.47,1.6747942]
[1754860420229,0.76884655,802.7,801.47,1.6747942]
[1754860420432,0.76884655,802.69,801.46,1.6747942]
[1754860420630,0.76884655,802.68,801.46,1.6747942]
[1754860420832,1.05355203,802.9,801.46,1.6747942]
[1754860420833,0.76884655,802.67,801.46,1.6747942]
[1754860421033,0.76884655,802.66,801.46,1.6747942]
[1754860421229,0.76884655,802.65,801.46,1.6747942]
[1754860421430,0.76884655,802.64,801.45,1.6747942]
[1754860421630,0.76884655,802.63,801.43,1.6747942]
[1754860421929,0.76884655,802.62,801.43,1.6747942]
[1754860422134,0.76884655,802.61,801.43,1.6747942]
[1754860422430,0.76884655,802.6,801.42,1.6747942]
[1754860422629,0.76884655,802.59,801.4,1.6747942]
[1754860422828,0.76884655,802.58,801.4,1.6747942]
[1754860423034,0.76884655,802.57,801.4,1.6747942]
[1754860423230,0.76884655,802.56,801.4,1.6747942]
[1754860423429,0.76884655,802.55,801.39,1.6747942]
[1754860423731,0.76884655,802.54,801.5,1.6747942]
[1754860423933,0.76884655,802.53,801.5,1.6747942]
[1754860424135,0.76884655,802.52,801.5,1.6747942]
[1754860424429,0.76884655,802.51,801.49,1.6747942]
[1754860424634,0.83654234,802.78,801.49,1.6747942]
[1754860424831,0.76940732,802.77,801.49,1.6747942]
[1754860425134,0.76940732,802.76,801.49,1.6747942]
[1754860425330,0.76940732,802.75,801.39,1.6747942]
[1754860425536,0.76940732,802.74,801.4,1.6747942]
[1754860425736,0.76940732,802.73,801.4,1.6747942]
[1754860425938,0.76940732,802.72,801.38,1.6747942]
[1754860426137,0.76940732,802.71,801.39,1.6747942]
[1754860426339,0.76940732,802.7,801.39,1.6747942]
[1754860426534,0.76940732,802.69,801.4,1.6747942]
[1754860426734,0.76940732,802.68,801.4,1.6747942]
[1754860426933,0.76940732,802.67,801.4,1.6747942]
[1754860427136,0.76940732,802.66,801.4,1.6747942]
[1754860427337,0.76940732,802.65,801.4,1.6747942]
[1754860427537,0.76940732,802.64,801.4,1.6747942]
[1754860427733,0.76940732,802.63,801.4,1.6747942]
[1754860428033,0.76940732,802.62,801.4,1.6747942]
[1754860428235,0.76940732,802.61,801.4,1.6747942]
[1754860428436,0.76940732,802.6,801.4,1.6747942]
[1754860428734,0.76940732,802.59,801.4,1.6747942]
[1754860429037,0.76940732,802.58,801.4,1.6747942]
[1754860429337,0.76940732,802.57,801.41,1.6747942]
[1754860429537,0.76940732,802.56,801.41,1.6747942]
[1754860429837,0.76940732,802.55,801.41,1.6747942]
[1754860430035,0.76940732,802.54,801.41,1.6747942]
[1754860430236,0.83654234,802.88,801.41,1.6747942]
[1754860430437,0.7691772,802.87,801.42,1.6747942]
[1754860430635,0.7691772,802.86,801.42,1.6747942]
[1754860430834,0.7691772,802.85,801.42,1.6747942]
[1754860431138,0.7691772,802.84,801.47,1.6747942]
[1754860431339,0.7691772,802.83,801.48,1.6747942]
[1754860431537,0.7691772,802.82,801.48,1.6747942]
[1754860431737,0.7691772,802.81,801.48,1.6747942]
[1754860431938,0.7691772,802.8,801.48,1.6747942]
[1754860432135,0.7691772,802.79,801.48,1.6747942]
[1754860432335,0.21700969,802.9,801.48,1.6747942]
[1754860432336,0.7691772,802.78,801.48,1.6747942]
[1754860432640,0.7691772,802.77,801.49,1.6747942]
[1754860432936,0.7691772,802.76,801.49,1.6747942]
[1754860433141,0.7691772,802.75,801.61,1.6747942]
[1754860433342,0.7691772,802.74,801.63,1.6747942]
[1754860433641,0.7691772,802.73,801.63,1.6747942]
[1754860433841,0.7691772,802.72,801.58,1.6747942]
[1754860434042,0.7691772,802.71,801.62,1.6747942]
[1754860434336,0.7691772,802.7,801.62,1.6747942]
[1754860434540,0.7691772,802.69,801.63,1.6747942]
[1754860434838,0.7691772,802.68,801.63,1.6747942]
[1754860435143,0.7691772,802.67,801.63,1.6747942]
[1754860435340,0.7691772,802.66,801.65,1.6747942]
[1754860435643,0.7691772,802.65,801.65,1.6747942]
[1754860435937,0.7691772,802.64,801.65,1.6747942]
[1754860436141,0.7691772,802.63,801.65,1.6747942]
[1754860436441,0.21700969,802.9,801.53,1.6747942]
[1754860436442,0.7691772,802.62,801.53,1.6747942]
[1754860436640,0.7691772,802.61,801.53,1.6747942]
[1754860436841,0.7691772,802.6,801.54,1.6747942]
[1754860437042,0.7691772,802.59,801.54,1.6747942]
[1754860437339,0.7691772,802.58,801.54,1.6747942]
[1754860437538,0.7691772,802.57,801.53,1.6747942]
[1754860437738,0.7691772,802.56,801.53,1.6747942]
[1754860437940,0.7691772,802.55,801.53,1.6747942]
[1754860438141,0.7691772,802.54,801.49,1.6747942]